[Event "*** Titled Tuesday 3|2 Blitz"]
[Site "Chess.com"]
[Date "2015.06.02"]
[Round "3"]
[White "JustaTrickstar"]
[Black "aripov96"]
[Result "1-0"]
[WhiteElo "2443"]
[BlackElo "2266"]
[TimeControl "180+2"]
[EndTime "11:35:51 PDT"]
[Termination "JustaTrickstar won by checkmate"]

1. d4 {[%clk 0:03:01.9]} 1... d5 {[%clk 0:03:00.5]} 2. c4 {[%clk 0:02:58.7]}
2... c6 {[%clk 0:03:01.3]} 3. Nf3 {[%clk 0:02:59.4]} 3... Nf6 {[%clk 0:03:01.6]}
4. Nc3 {[%clk 0:03:00]} 4... e6 {[%clk 0:03:02.2]} 5. e3 {[%clk 0:02:58.8]} 5...
Nbd7 {[%clk 0:02:59.8]} 6. Qc2 {[%clk 0:02:59.9]} 6... Bd6 {[%clk 0:02:59.5]} 7.
Bd3 {[%clk 0:03:00.5]} 7... O-O {[%clk 0:02:54.5]} 8. O-O {[%clk 0:03:00.8]}
8... e5 {[%clk 0:02:53.8]} 9. cxd5 {[%clk 0:02:53.2]} 9... cxd5 {[%clk
0:02:49.1]} 10. dxe5 {[%clk 0:02:53.5]} 10... Nxe5 {[%clk 0:02:50]} 11. Nxe5
{[%clk 0:02:54.2]} 11... Bxe5 {[%clk 0:02:51.9]} 12. Ne2 {[%clk 0:02:54.2]}
12... Bg4 {[%clk 0:02:47.6]} 13. h3 {[%clk 0:02:52.8]} 13... Bxe2 {[%clk
0:02:41.1]} 14. Qxe2 {[%clk 0:02:51.7]} 14... Ne4 {[%clk 0:02:28]} 15. Rb1
{[%clk 0:02:24.2]} 15... Bc7 {[%clk 0:02:18.5]} 16. Rd1 {[%clk 0:02:15.2]} 16...
Qf6 {[%clk 0:02:12.4]} 17. Bd2 {[%clk 0:02:05.9]} 17... Qe5 {[%clk 0:02:09.3]}
18. g3 {[%clk 0:01:48.2]} 18... Nxd2 {[%clk 0:01:47.8]} 19. Rxd2 {[%clk
0:01:43.2]} 19... Rfd8 {[%clk 0:01:48.3]} 20. Rbd1 {[%clk 0:01:43.5]} 20... g6
{[%clk 0:01:45.5]} 21. Bc2 {[%clk 0:01:37.3]} 21... Ba5 {[%clk 0:01:40.3]} 22.
Rd4 {[%clk 0:01:37.5]} 22... Bb6 {[%clk 0:01:39.6]} 23. Rb4 {[%clk 0:01:30.7]}
23... d4 {[%clk 0:01:38.9]} 24. e4 {[%clk 0:01:28.6]} 24... Rac8 {[%clk
0:01:22.3]} 25. Rb5 {[%clk 0:00:59.5]} 25... Qe6 {[%clk 0:00:58.3]} 26. Bb3
{[%clk 0:00:43.6]} 26... Qxh3 {[%clk 0:00:51]} 27. Qf3 {[%clk 0:00:44.5]} 27...
Rf8 {[%clk 0:00:47.8]} 28. e5 {[%clk 0:00:44.8]} 28... Qd7 {[%clk 0:00:38.5]}
29. a4 {[%clk 0:00:40.3]} 29... Rc5 {[%clk 0:00:37]} 30. Rxc5 {[%clk 0:00:32.1]}
30... Bxc5 {[%clk 0:00:38.9]} 31. Re1 {[%clk 0:00:33.1]} 31... Qe7 {[%clk
0:00:38.1]} 32. Qd5 {[%clk 0:00:31.5]} 32... Kg7 {[%clk 0:00:31.2]} 33. Bc4
{[%clk 0:00:21.9]} 33... Bb6 {[%clk 0:00:29.4]} 34. Re4 {[%clk 0:00:21.6]} 34...
Qb4 {[%clk 0:00:27]} 35. b3 {[%clk 0:00:21.3]} 35... Qd2 {[%clk 0:00:24.2]} 36.
Rf4 {[%clk 0:00:18.5]} 36... d3 {[%clk 0:00:19.2]} 37. Bxd3 {[%clk 0:00:14.4]}
37... Bc7 {[%clk 0:00:17.2]} 38. Rf3 {[%clk 0:00:13.6]} 38... Qe1+ {[%clk
0:00:17.8]} 39. Kg2 {[%clk 0:00:14.6]} 39... Qxe5 {[%clk 0:00:18.8]} 40. Qxb7
{[%clk 0:00:15.7]} 40... Bb6 {[%clk 0:00:19]} 41. Bc4 {[%clk 0:00:16.9]} 41...
Qc7 {[%clk 0:00:19.4]} 42. Qd5 {[%clk 0:00:15.9]} 42... Qe7 {[%clk 0:00:19.7]}
43. a5 {[%clk 0:00:15.8]} 43... Bc7 {[%clk 0:00:19.8]} 44. Re3 {[%clk
0:00:16.5]} 44... Qd6 {[%clk 0:00:20.1]} 45. Qb7 {[%clk 0:00:14.5]} 45... Bxa5
{[%clk 0:00:20.5]} 46. Rd3 {[%clk 0:00:13.2]} 46... Qc5 {[%clk 0:00:17.9]} 47.
Rd5 {[%clk 0:00:13]} 47... Qb6 {[%clk 0:00:17.9]} 48. Qd7 {[%clk 0:00:13.9]}
48... Bc3 {[%clk 0:00:17.7]} 49. Rd3 {[%clk 0:00:12.8]} 49... Bb4 {[%clk
0:00:18.3]} 50. Rf3 {[%clk 0:00:13.7]} 50... a5 {[%clk 0:00:14.4]} 51. Bxf7
{[%clk 0:00:13.9]} 51... Kh6 {[%clk 0:00:14.6]} 52. Qd1 {[%clk 0:00:11.4]} 52...
Qb7 {[%clk 0:00:13.3]} 53. Bd5 {[%clk 0:00:11.7]} 53... Qc7 {[%clk 0:00:13.6]}
54. Rd3 {[%clk 0:00:05]} 54... Qc5 {[%clk 0:00:13.5]} 55. f4 {[%clk 0:00:05.7]}
55... Kg7 {[%clk 0:00:12.3]} 56. Bc4 {[%clk 0:00:07]} 56... h5 {[%clk
0:00:11.2]} 57. Rd7+ {[%clk 0:00:08]} 57... Kh6 {[%clk 0:00:12.7]} 58. Qa1
{[%clk 0:00:07.6]} 58... Qc6+ {[%clk 0:00:13.7]} 59. Rd5 {[%clk 0:00:07.4]}
59... Qf6 {[%clk 0:00:14.9]} 60. Qd1 {[%clk 0:00:07.5]} 60... Qb2+ {[%clk
0:00:14]} 61. Qe2 {[%clk 0:00:06.4]} 61... Qxe2+ {[%clk 0:00:14.6]} 62. Bxe2
{[%clk 0:00:08.3]} 62... Re8 {[%clk 0:00:15.2]} 63. Bd3 {[%clk 0:00:08.7]} 63...
Re3 {[%clk 0:00:16.1]} 64. Rd7 {[%clk 0:00:08.6]} 64... g5 {[%clk 0:00:14.4]}
65. Rh7# {[%clk 0:00:06.4]} 1-0

[Event "*** Titled Tuesday 3|2 Blitz"]
[Site "Chess.com"]
[Date "2015.06.02"]
[Round "3"]
[White "TomsKantans"]
[Black "Krutoy123"]
[Result "0-1"]
[WhiteElo "2267"]
[BlackElo "2087"]
[TimeControl "180+2"]
[EndTime "11:36:45 PDT"]
[Termination "Krutoy123 won by resignation"]

1. e4 {[%clk 0:02:53.7]} 1... c5 {[%clk 0:02:39]} 2. Nf3 {[%clk 0:02:54.1]} 2...
e6 {[%clk 0:02:40.4]} 3. g3 {[%clk 0:02:54.3]} 3... Nc6 {[%clk 0:02:40.8]} 4.
Bg2 {[%clk 0:02:55.5]} 4... d6 {[%clk 0:02:39.6]} 5. O-O {[%clk 0:02:54.2]} 5...
Nf6 {[%clk 0:02:41.2]} 6. Qe2 {[%clk 0:02:53.1]} 6... Be7 {[%clk 0:02:41.7]} 7.
e5 {[%clk 0:02:53.2]} 7... dxe5 {[%clk 0:02:40.3]} 8. Nxe5 {[%clk 0:02:55.1]}
8... Nxe5 {[%clk 0:02:39.2]} 9. Qxe5 {[%clk 0:02:55.6]} 9... O-O {[%clk
0:02:41.1]} 10. Nc3 {[%clk 0:02:54.5]} 10... Bd6 {[%clk 0:02:38.3]} 11. Qe2
{[%clk 0:02:54.8]} 11... a6 {[%clk 0:02:38.8]} 12. d3 {[%clk 0:02:52.7]} 12...
h6 {[%clk 0:02:39.8]} 13. a4 {[%clk 0:02:52.4]} 13... Qc7 {[%clk 0:02:39.7]} 14.
a5 {[%clk 0:02:45.4]} 14... Bd7 {[%clk 0:02:38.4]} 15. Re1 {[%clk 0:02:31.6]}
15... Bc6 {[%clk 0:02:38.5]} 16. Bxc6 {[%clk 0:02:32.1]} 16... Qxc6 {[%clk
0:02:39.2]} 17. Na4 {[%clk 0:02:32.6]} 17... Rad8 {[%clk 0:02:33.4]} 18. Nb6
{[%clk 0:02:30]} 18... Bc7 {[%clk 0:02:33.3]} 19. Nc4 {[%clk 0:02:30.7]} 19...
Rfe8 {[%clk 0:02:30.4]} 20. b3 {[%clk 0:02:26.2]} 20... Nd5 {[%clk 0:02:27.4]}
21. Bb2 {[%clk 0:02:24.1]} 21... f6 {[%clk 0:02:28]} 22. f4 {[%clk 0:02:13.5]}
22... Re7 {[%clk 0:02:03.7]} 23. Qg2 {[%clk 0:02:09.2]} 23... Rde8 {[%clk
0:02:04.1]} 24. Re2 {[%clk 0:02:09.1]} 24... Nb4 {[%clk 0:02:03.9]} 25. Qh3
{[%clk 0:02:01.4]} 25... Qd5 {[%clk 0:01:59.6]} 26. Rae1 {[%clk 0:01:47.2]}
26... Nc6 {[%clk 0:01:56.1]} 27. Bc3 {[%clk 0:01:35.1]} 27... Nd4 {[%clk
0:01:54.5]} 28. Bxd4 {[%clk 0:01:36]} 28... cxd4 {[%clk 0:01:56.4]} 29. Qg2
{[%clk 0:01:22.1]} 29... Qxg2+ {[%clk 0:01:50.1]} 30. Kxg2 {[%clk 0:01:22.5]}
30... Kf7 {[%clk 0:01:52]} 31. Kf3 {[%clk 0:01:16.3]} 31... Rd7 {[%clk
0:01:53.2]} 32. f5 {[%clk 0:01:06.5]} 32... e5 {[%clk 0:01:52.1]} 33. Ke4 {[%clk
0:01:06.8]} 33... Red8 {[%clk 0:01:52.7]} 34. g4 {[%clk 0:01:02.5]} 34... Rd5
{[%clk 0:01:53.7]} 35. b4 {[%clk 0:00:42.1]} 35... Rb5 {[%clk 0:01:55]} 36. Rb1
{[%clk 0:00:42.3]} 36... Ke8 {[%clk 0:01:31.8]} 37. h4 {[%clk 0:00:41.9]} 37...
Kf7 {[%clk 0:01:27.1]} 38. Rg2 {[%clk 0:00:40.6]} 38... b6 {[%clk 0:01:09.7]}
39. axb6 {[%clk 0:00:38.9]} 39... Bxb6 {[%clk 0:01:11.6]} 40. g5 {[%clk
0:00:39.5]} 40... hxg5 {[%clk 0:01:07.6]} 41. hxg5 {[%clk 0:00:40.6]} 41... Bc5
{[%clk 0:00:52.7]} 42. Rh1 {[%clk 0:00:17.2]} 42... Be7 {[%clk 0:00:33.5]} 43.
gxf6 {[%clk 0:00:13.4]} 43... Bxf6 {[%clk 0:00:35.4]} 44. Ra1 {[%clk 0:00:09.3]}
44... Rxb4 {[%clk 0:00:35.5]} 45. Rxa6 {[%clk 0:00:10.2]} 45... Rb1 {[%clk
0:00:29.6]} 46. Ra7+ {[%clk 0:00:10]} 46... Kg8 {[%clk 0:00:30.4]} 47. Re2
{[%clk 0:00:08.6]} 47... Rg1 {[%clk 0:00:29.9]} 48. Kf3 {[%clk 0:00:05.8]} 48...
Rf1+ {[%clk 0:00:30.6]} 49. Kg4 {[%clk 0:00:06.8]} 49... Rf4+ {[%clk 0:00:30.7]}
50. Kg3 {[%clk 0:00:08.4]} 50... Rxf5 {[%clk 0:00:30.6]} 51. Ra5 {[%clk
0:00:07.7]} 51... Rb8 {[%clk 0:00:20.9]} 52. Nd6 {[%clk 0:00:05.6]} 52... Rf4
{[%clk 0:00:17]} 53. Ne4 {[%clk 0:00:06]} 53... Rb1 {[%clk 0:00:17.7]} 54. Nxf6+
{[%clk 0:00:05.9]} 54... gxf6 {[%clk 0:00:19.6]} 55. Ra7 {[%clk 0:00:05.8]}
55... Rg1+ {[%clk 0:00:18.3]} 56. Kh3 {[%clk 0:00:06.6]} 56... Rf3+ {[%clk
0:00:12.3]} 57. Kh2 {[%clk 0:00:07.1]} 57... Rg7 {[%clk 0:00:12.1]} 58. Rxg7+
{[%clk 0:00:06.7]} 58... Kxg7 {[%clk 0:00:14]} 59. Kg2 {[%clk 0:00:06.9]} 59...
Rf4 {[%clk 0:00:14.7]} 60. Re1 {[%clk 0:00:07.8]} 60... Kg6 {[%clk 0:00:15.1]}
61. Rc1 {[%clk 0:00:07.5]} 61... Rg4+ {[%clk 0:00:11.6]} 62. Kf3 {[%clk
0:00:08.4]} 62... Rh4 {[%clk 0:00:12.6]} 63. c4 {[%clk 0:00:08.9]} 63... Rh3+
{[%clk 0:00:06]} 64. Ke2 {[%clk 0:00:09.3]} 64... Kf7 {[%clk 0:00:06.8]} 65. c5
{[%clk 0:00:06.7]} 65... Ke7 {[%clk 0:00:07.3]} 66. c6 {[%clk 0:00:08.1]} 66...
Kd8 {[%clk 0:00:07.6]} 67. c7+ {[%clk 0:00:09.5]} 67... Kc8 {[%clk 0:00:08.4]}
68. Rc6 {[%clk 0:00:10.4]} 68... Re3+ {[%clk 0:00:09.2]} 69. Kd2 {[%clk
0:00:10.4]} 69... f5 {[%clk 0:00:09.6]} 70. Rc5 {[%clk 0:00:08.8]} 70... f4
{[%clk 0:00:10.1]} 71. Rc6 {[%clk 0:00:09.7]} 71... f3 {[%clk 0:00:11]} 72. Rc1
{[%clk 0:00:10]} 72... Re2+ {[%clk 0:00:11.2]} 73. Kd1 {[%clk 0:00:10.7]} 73...
Rh2 {[%clk 0:00:12.3]} 74. Rc6 {[%clk 0:00:09.5]} 74... Rh1+ {[%clk 0:00:13]}
75. Kd2 {[%clk 0:00:10.7]} 75... f2 {[%clk 0:00:14.6]} 0-1

[Event "*** Titled Tuesday 3|2 Blitz"]
[Site "Chess.com"]
[Date "2015.06.02"]
[Round "3"]
[White "Cruel_Yaro"]
[Black "GMNeiksans"]
[Result "1-0"]
[WhiteElo "2549"]
[BlackElo "2506"]
[TimeControl "180+2"]
[EndTime "11:36:56 PDT"]
[Termination "Cruel_Yaro won by resignation"]

1. e4 {[%clk 0:03:00.6]} 1... c5 {[%clk 0:02:56.8]} 2. Nf3 {[%clk 0:03:00.5]}
2... e6 {[%clk 0:02:57.6]} 3. c3 {[%clk 0:03:00.3]} 3... Nf6 {[%clk 0:02:55.7]}
4. Bd3 {[%clk 0:02:57.4]} 4... Nc6 {[%clk 0:02:54]} 5. Bc2 {[%clk 0:02:52.6]}
5... e5 {[%clk 0:02:49.1]} 6. O-O {[%clk 0:02:47.8]} 6... d6 {[%clk 0:02:25]} 7.
h3 {[%clk 0:02:28.4]} 7... Be7 {[%clk 0:02:25.4]} 8. d4 {[%clk 0:02:29.3]} 8...
O-O {[%clk 0:02:10.9]} 9. dxc5 {[%clk 0:02:14.8]} 9... dxc5 {[%clk 0:02:11.7]}
10. Qe2 {[%clk 0:02:09.4]} 10... h6 {[%clk 0:02:07]} 11. Nbd2 {[%clk 0:02:04.2]}
11... Qc7 {[%clk 0:02:02.2]} 12. Nc4 {[%clk 0:01:59.6]} 12... Be6 {[%clk
0:01:54.3]} 13. Ne3 {[%clk 0:01:30.2]} 13... Rfd8 {[%clk 0:01:54.1]} 14. Nf5
{[%clk 0:01:12.2]} 14... Bf8 {[%clk 0:01:54.6]} 15. Nh2 {[%clk 0:01:03.4]} 15...
Kh7 {[%clk 0:01:28.6]} 16. Qf3 {[%clk 0:01:02.9]} 16... Ng8 {[%clk 0:01:24.8]}
17. Ng4 {[%clk 0:00:50.1]} 17... g6 {[%clk 0:01:26]} 18. Ng3 {[%clk 0:00:21.4]}
18... Bg7 {[%clk 0:01:13.8]} 19. h4 {[%clk 0:00:21.2]} 19... h5 {[%clk
0:01:12.1]} 20. Ne3 {[%clk 0:00:21.5]} 20... f6 {[%clk 0:00:58.5]} 21. Nd5
{[%clk 0:00:19.2]} 21... Qf7 {[%clk 0:00:59.3]} 22. Ne3 {[%clk 0:00:12.2]} 22...
Nh6 {[%clk 0:00:56.7]} 23. Re1 {[%clk 0:00:12.1]} 23... Ng4 {[%clk 0:00:54.3]}
24. Nxg4 {[%clk 0:00:12.9]} 24... Bxg4 {[%clk 0:00:49.3]} 25. Qe3 {[%clk
0:00:14.1]} 25... Be6 {[%clk 0:00:46.5]} 26. Qxc5 {[%clk 0:00:13.1]} 26... Bh6
{[%clk 0:00:42.3]} 27. Bxh6 {[%clk 0:00:13.4]} 27... Kxh6 {[%clk 0:00:44.2]} 28.
Qe3+ {[%clk 0:00:14.3]} 28... Kg7 {[%clk 0:00:45.6]} 29. a3 {[%clk 0:00:13.5]}
29... Na5 {[%clk 0:00:46.2]} 30. Rac1 {[%clk 0:00:14.4]} 30... Nb3 {[%clk
0:00:46.4]} 31. Bxb3 {[%clk 0:00:14.9]} 31... Bxb3 {[%clk 0:00:47.5]} 32. f4
{[%clk 0:00:16]} 32... exf4 {[%clk 0:00:46.6]} 33. Qxf4 {[%clk 0:00:15.8]} 33...
Qc4 {[%clk 0:00:47.5]} 34. Rf1 {[%clk 0:00:15.9]} 34... Qc5+ {[%clk 0:00:47.6]}
35. Rf2 {[%clk 0:00:13]} 35... Qe5 {[%clk 0:00:48.7]} 36. Qxe5 {[%clk 0:00:12]}
36... fxe5 {[%clk 0:00:49.7]} 37. Nf1 {[%clk 0:00:10.6]} 37... a5 {[%clk
0:00:49]} 38. Nd2 {[%clk 0:00:11.7]} 38... Bg8 {[%clk 0:00:44]} 39. Nf3 {[%clk
0:00:12.3]} 39... a4 {[%clk 0:00:41.1]} 40. Nxe5 {[%clk 0:00:08.9]} 40... Re8
{[%clk 0:00:42.5]} 41. Nf3 {[%clk 0:00:08.6]} 41... Rxe4 {[%clk 0:00:43.5]} 42.
Rd2 {[%clk 0:00:09.7]} 42... Re7 {[%clk 0:00:41.4]} 43. Rcd1 {[%clk 0:00:09.8]}
43... Bb3 {[%clk 0:00:41.4]} 44. Rd7 {[%clk 0:00:10.4]} 44... Re8 {[%clk
0:00:42.6]} 45. R1d6 {[%clk 0:00:11.4]} 45... Kh6 {[%clk 0:00:40.8]} 46. Rxe7
{[%clk 0:00:08.8]} 46... Rxe7 {[%clk 0:00:42.3]} 47. Nd4 {[%clk 0:00:09.7]}
47... Re1+ {[%clk 0:00:38.2]} 48. Kh2 {[%clk 0:00:10.6]} 48... Bc4 {[%clk
0:00:30.7]} 49. Nf5+ {[%clk 0:00:10.4]} 49... Kh7 {[%clk 0:00:32.2]} 50. Rd7+
{[%clk 0:00:11.3]} 50... Kh8 {[%clk 0:00:33.7]} 51. Ne7 {[%clk 0:00:10.8]} 51...
b5 {[%clk 0:00:29.8]} 52. Nxg6+ {[%clk 0:00:11.6]} 52... Kg8 {[%clk 0:00:31.4]}
53. Rd2 {[%clk 0:00:11.4]} 53... Re4 {[%clk 0:00:27.7]} 54. g3 {[%clk
0:00:12.7]} 54... Re1 {[%clk 0:00:27.7]} 55. Nf4 {[%clk 0:00:13.7]} 55... Re5
{[%clk 0:00:26]} 56. Kg2 {[%clk 0:00:14.6]} 56... Kg7 {[%clk 0:00:26.8]} 57. Kf2
{[%clk 0:00:15.9]} 57... Kf6 {[%clk 0:00:26.6]} 58. Kf3 {[%clk 0:00:17.1]} 58...
Kg7 {[%clk 0:00:22.7]} 59. Rd7+ {[%clk 0:00:17.8]} 59... Kh6 {[%clk 0:00:23.4]}
60. Rd6+ {[%clk 0:00:18.8]} 60... Kg7 {[%clk 0:00:24.9]} 61. Rg6+ {[%clk
0:00:19.9]} 61... Kf7 {[%clk 0:00:25.7]} 62. Rd6 {[%clk 0:00:15.9]} 62... Kg7
{[%clk 0:00:25.7]} 63. Rd2 {[%clk 0:00:16.8]} 63... Kf7 {[%clk 0:00:26.3]} 64.
Kf2 {[%clk 0:00:14.6]} 64... Kg7 {[%clk 0:00:27]} 65. Rd1 {[%clk 0:00:15.8]}
65... Kh6 {[%clk 0:00:22.1]} 66. Re1 {[%clk 0:00:16.5]} 66... Rf5 {[%clk
0:00:23.1]} 67. Re7 {[%clk 0:00:13.4]} 67... Rf6 {[%clk 0:00:22.3]} 68. Ke3
{[%clk 0:00:13.9]} 68... Rd6 {[%clk 0:00:23]} 69. Re5 {[%clk 0:00:14.9]} 69...
Rd1 {[%clk 0:00:23.7]} 70. Rxh5+ {[%clk 0:00:15.6]} 70... Kg7 {[%clk 0:00:25.3]}
71. Rg5+ {[%clk 0:00:15.6]} 71... Kh6 {[%clk 0:00:26.1]} 72. Rg6+ {[%clk
0:00:15.9]} 72... Kh7 {[%clk 0:00:27.2]} 73. Rf6 {[%clk 0:00:12.4]} 73... Rb1
{[%clk 0:00:25.9]} 74. g4 {[%clk 0:00:13.2]} 74... Rxb2 {[%clk 0:00:27.1]} 75.
g5 {[%clk 0:00:14.4]} 75... Rb3 {[%clk 0:00:27.5]} 76. Rh6+ {[%clk 0:00:10.2]}
76... Kg8 {[%clk 0:00:28.3]} 77. Nh5 {[%clk 0:00:08.9]} 77... Rxc3+ {[%clk
0:00:28.3]} 78. Kf4 {[%clk 0:00:10]} 78... Be2 {[%clk 0:00:24.3]} 79. Nf6+
{[%clk 0:00:10.3]} 79... Kg7 {[%clk 0:00:25.1]} 80. Rh7+ {[%clk 0:00:10.2]}
80... Kf8 {[%clk 0:00:25.8]} 81. g6 {[%clk 0:00:10.9]} 81... Bc4 {[%clk
0:00:26.7]} 82. g7+ {[%clk 0:00:11.4]} 1-0

[Event "*** Titled Tuesday 3|2 Blitz"]
[Site "Chess.com"]
[Date "2015.06.02"]
[Round "3"]
[White "Lupul_Cenusiu"]
[Black "Danirod"]
[Result "1-0"]
[WhiteElo "2453"]
[BlackElo "2388"]
[TimeControl "180+2"]
[EndTime "11:37:43 PDT"]
[Termination "Lupul_Cenusiu won by resignation"]

1. d4 {[%clk 0:03:01.9]} 1... Nf6 {[%clk 0:03:00.6]} 2. Bg5 {[%clk 0:03:00.8]}
2... d5 {[%clk 0:03:00.5]} 3. Bxf6 {[%clk 0:03:01]} 3... exf6 {[%clk 0:03:01.8]}
4. e3 {[%clk 0:03:02.2]} 4... c6 {[%clk 0:03:03]} 5. c4 {[%clk 0:02:59]} 5...
dxc4 {[%clk 0:03:04]} 6. Bxc4 {[%clk 0:02:59.1]} 6... Bd6 {[%clk 0:03:05.3]} 7.
Nf3 {[%clk 0:02:56.9]} 7... Nd7 {[%clk 0:03:04.8]} 8. Qc2 {[%clk 0:02:56.4]}
8... O-O {[%clk 0:03:05.3]} 9. O-O {[%clk 0:02:55.2]} 9... f5 {[%clk 0:03:02.2]}
10. Bd3 {[%clk 0:02:51.6]} 10... g6 {[%clk 0:03:01.2]} 11. Nc3 {[%clk
0:02:48.3]} 11... Qe7 {[%clk 0:02:59.1]} 12. Rfe1 {[%clk 0:02:48.5]} 12... Nf6
{[%clk 0:02:58.9]} 13. Rad1 {[%clk 0:02:43]} 13... Be6 {[%clk 0:02:59]} 14. e4
{[%clk 0:02:41.5]} 14... fxe4 {[%clk 0:02:59.7]} 15. Nxe4 {[%clk 0:02:41.2]}
15... Nxe4 {[%clk 0:03:00.7]} 16. Bxe4 {[%clk 0:02:42.4]} 16... Qf6 {[%clk
0:02:38.5]} 17. d5 {[%clk 0:02:39.4]} 17... cxd5 {[%clk 0:02:39.2]} 18. Bxd5
{[%clk 0:02:39.5]} 18... Bf5 {[%clk 0:02:34.3]} 19. Qb3 {[%clk 0:02:40.2]} 19...
Rab8 {[%clk 0:02:20.9]} 20. h3 {[%clk 0:02:35.5]} 20... h5 {[%clk 0:02:21.2]}
21. Nd4 {[%clk 0:02:28.4]} 21... Bd7 {[%clk 0:02:13.8]} 22. Nb5 {[%clk
0:02:25.5]} 22... Bc5 {[%clk 0:02:10.4]} 23. Bf3 {[%clk 0:02:07.3]} 23... Bc6
{[%clk 0:02:09.1]} 24. Rd3 {[%clk 0:01:53]} 24... Rfe8 {[%clk 0:01:50]} 25. Red1
{[%clk 0:01:49.9]} 25... Re2 {[%clk 0:01:26.4]} 26. Rd6 {[%clk 0:01:30]} 26...
Rxb2 {[%clk 0:01:03.7]} 27. Rxf6 {[%clk 0:01:25.9]} 27... Rxb3 {[%clk
0:01:04.8]} 28. Bxc6 {[%clk 0:01:14.2]} 28... bxc6 {[%clk 0:00:24.5]} 29. axb3
{[%clk 0:01:14.4]} 29... cxb5 {[%clk 0:00:17.4]} 30. Rd7 {[%clk 0:01:13.9]}
30... Rf8 {[%clk 0:00:18.4]} 31. Rc6 {[%clk 0:01:09.1]} 31... Bb6 {[%clk
0:00:19.5]} 32. Rd5 {[%clk 0:01:09.7]} 32... Re8 {[%clk 0:00:19]} 33. Kf1 {[%clk
0:01:10.7]} 33... b4 {[%clk 0:00:19.1]} 34. Rc4 {[%clk 0:01:09.4]} 34... Kg7
{[%clk 0:00:17.8]} 35. Rxb4 {[%clk 0:01:09.5]} 35... Re6 {[%clk 0:00:19.1]} 36.
Rc4 {[%clk 0:01:09.4]} 36... Rf6 {[%clk 0:00:20.3]} 37. Rd2 {[%clk 0:01:09.8]}
37... Re6 {[%clk 0:00:21.6]} 38. b4 {[%clk 0:01:07.5]} 38... g5 {[%clk
0:00:22.8]} 39. g3 {[%clk 0:01:07.7]} 39... Kg6 {[%clk 0:00:23.8]} 40. Kg2
{[%clk 0:01:08.5]} 40... f6 {[%clk 0:00:25.1]} 41. h4 {[%clk 0:01:09.1]} 41...
g4 {[%clk 0:00:25.8]} 42. Rdc2 {[%clk 0:01:04.6]} 42... Re5 {[%clk 0:00:27.1]}
43. Rc8 {[%clk 0:01:03.6]} 43... Rb5 {[%clk 0:00:25.4]} 44. Rb2 {[%clk
0:01:01.9]} 44... Rf5 {[%clk 0:00:25.7]} 45. b5 {[%clk 0:01:01.4]} 45... Rf3
{[%clk 0:00:25.5]} 46. Rc6 {[%clk 0:01:00.7]} 46... Rf5 {[%clk 0:00:26.4]} 47.
Rc4 {[%clk 0:00:59.5]} 47... Re5 {[%clk 0:00:26.9]} 48. Rb3 {[%clk 0:00:58.9]}
48... Rf5 {[%clk 0:00:27.8]} 49. Rf4 {[%clk 0:00:55.4]} 49... Rd5 {[%clk
0:00:29.1]} 50. Rb2 {[%clk 0:00:56]} 50... Re5 {[%clk 0:00:29.2]} 51. Rc2 {[%clk
0:00:55]} 51... Rxb5 {[%clk 0:00:29.9]} 52. Rc6 {[%clk 0:00:55.9]} 52... Rf5
{[%clk 0:00:30.1]} 53. Rxf5 {[%clk 0:00:56.8]} 53... Kxf5 {[%clk 0:00:31.6]} 54.
f3 {[%clk 0:00:58.5]} 54... gxf3+ {[%clk 0:00:32.1]} 55. Kxf3 {[%clk 0:00:59.5]}
55... Kg6 {[%clk 0:00:33.1]} 56. g4 {[%clk 0:00:59.8]} 56... hxg4+ {[%clk
0:00:34]} 57. Kxg4 {[%clk 0:01:00.9]} 57... Bd4 {[%clk 0:00:35.1]} 58. Rd6
{[%clk 0:01:00.1]} 58... Be5 {[%clk 0:00:35.1]} 59. h5+ {[%clk 0:00:56.1]} 59...
Kh6 {[%clk 0:00:34.8]} 60. Ra6 {[%clk 0:00:53.7]} 60... Bd4 {[%clk 0:00:36.3]}
61. Ra5 {[%clk 0:00:52]} 61... Bb6 {[%clk 0:00:34.4]} 62. Rb5 {[%clk 0:00:52.9]}
62... Bd4 {[%clk 0:00:34.6]} 63. Rb8 {[%clk 0:00:53.4]} 63... Bb6 {[%clk
0:00:32.2]} 64. Kf5 {[%clk 0:00:54]} 64... Bd4 {[%clk 0:00:33.1]} 65. Rh8+
{[%clk 0:00:54.1]} 65... Kg7 {[%clk 0:00:34.1]} 66. Rd8 {[%clk 0:00:53.9]} 66...
Be5 {[%clk 0:00:32.4]} 67. Rd7+ {[%clk 0:00:51.7]} 67... Kh6 {[%clk 0:00:33.1]}
68. Rxa7 {[%clk 0:00:52.6]} 68... Bd4 {[%clk 0:00:33.8]} 69. Re7 {[%clk
0:00:52.2]} 69... Be5 {[%clk 0:00:34.6]} 70. Re8 {[%clk 0:00:53.5]} 70... Bd4
{[%clk 0:00:34.1]} 71. Rh8+ {[%clk 0:00:54.4]} 71... Kg7 {[%clk 0:00:35.3]} 72.
Rd8 {[%clk 0:00:55.2]} 72... Be5 {[%clk 0:00:35.5]} 73. Kg4 {[%clk 0:00:55.9]}
73... Kh6 {[%clk 0:00:36.9]} 74. Rd5 {[%clk 0:00:56.6]} 74... Bc3 {[%clk
0:00:37.3]} 75. Rf5 {[%clk 0:00:57.7]} 75... Be5 {[%clk 0:00:38.4]} 76. Kf3
{[%clk 0:00:58.8]} 76... Kg7 {[%clk 0:00:38.8]} 77. Ke4 {[%clk 0:00:59.9]} 77...
Kh6 {[%clk 0:00:39.4]} 78. Kd5 {[%clk 0:01:01]} 78... Bc3 {[%clk 0:00:40.8]} 79.
Ke6 {[%clk 0:01:02.2]} 79... Bd4 {[%clk 0:00:40.9]} 80. Kf7 {[%clk 0:01:03.1]}
80... Be5 {[%clk 0:00:41.7]} 81. Ke6 {[%clk 0:01:04]} 81... Bd4 {[%clk
0:00:42.8]} 82. Kd5 {[%clk 0:01:05.6]} 82... Be5 {[%clk 0:00:43.7]} 83. Ke4
{[%clk 0:01:06.8]} 83... Bb2 {[%clk 0:00:44.5]} 84. Kf3 {[%clk 0:01:08.7]} 84...
Be5 {[%clk 0:00:45.6]} 85. Kg4 {[%clk 0:01:10.6]} 85... Kg7 {[%clk 0:00:46.7]}
86. Rf3 {[%clk 0:01:10.8]} 86... Kh6 {[%clk 0:00:48.2]} 87. Kf5 {[%clk
0:01:10.9]} 87... Bd4 {[%clk 0:00:48.6]} 88. Rh3 {[%clk 0:01:11.2]} 88... Be5
{[%clk 0:00:49.5]} 89. Rh1 {[%clk 0:01:12.1]} 89... Bd4 {[%clk 0:00:49.2]} 90.
Rd1 {[%clk 0:01:13]} 90... Be5 {[%clk 0:00:50.1]} 91. Rg1 {[%clk 0:01:14.7]}
91... Bd4 {[%clk 0:00:49]} 92. Rg8 {[%clk 0:01:13.6]} 92... Be5 {[%clk
0:00:48.9]} 93. Rd8 {[%clk 0:01:14.7]} 93... Bc3 {[%clk 0:00:48.7]} 94. Rh8+
{[%clk 0:01:15.4]} 94... Kg7 {[%clk 0:00:49.6]} 95. Rc8 {[%clk 0:01:15.6]} 95...
Be5 {[%clk 0:00:50.7]} 96. Ke6 {[%clk 0:01:15.5]} 96... Kh6 {[%clk 0:00:51]} 97.
Rh8+ {[%clk 0:01:16.5]} 97... Kg7 {[%clk 0:00:52.5]} 98. Re8 {[%clk 0:01:16.7]}
98... Kh6 {[%clk 0:00:53.3]} 99. Kf5 {[%clk 0:01:18.4]} 99... Bc3 {[%clk
0:00:51.8]} 100. Rh8+ {[%clk 0:01:16.9]} 100... Kg7 {[%clk 0:00:52.6]} 101. Rc8
{[%clk 0:01:17.1]} 101... Be5 {[%clk 0:00:53.9]} 102. Rc2 {[%clk 0:01:17]}
102... Kh6 {[%clk 0:00:53.9]} 103. Rc1 {[%clk 0:01:18.7]} 103... Bd4 {[%clk
0:00:53.8]} 104. Rd1 {[%clk 0:01:19.7]} 104... Be5 {[%clk 0:00:54.4]} 105. Rh1
{[%clk 0:01:20.5]} 105... Bd4 {[%clk 0:00:53.9]} 106. Rh2 {[%clk 0:01:20.7]}
106... Be5 {[%clk 0:00:54.1]} 107. Rh3 {[%clk 0:01:21.7]} 107... Bd4 {[%clk
0:00:53.9]} 108. Rg3 {[%clk 0:01:23.2]} 108... Be5 {[%clk 0:00:54.5]} 109. Rg1
{[%clk 0:01:23.5]} 109... Bd4 {[%clk 0:00:54.6]} 110. Rg6+ {[%clk 0:01:24.8]}
110... Kxh5 {[%clk 0:00:55.5]} 111. Rg8 {[%clk 0:01:25.1]} 111... Kh4 {[%clk
0:00:55.7]} 112. Rg4+ {[%clk 0:01:25.8]} 112... Kh5 {[%clk 0:00:53.9]} 113. Rxd4
{[%clk 0:01:27.7]} 1-0